bitfinex-derivatives/quotes_ETHF0:USTF0_20240822
["timestamp","ask_amount","ask_price","bid_price","bid_amount"]
[1724366938698,0.3677,2624.1,2624.0,0.38102]
[1724366938882,0.7232,2624.1,2624.0,0.38102]
[1724366939194,27.6344,2624.1,2624.0,0.38102]
[1724366939386,27.6344,2624.1,2623.9,0.75363]
[1724366939587,23.8232,2624.1,2623.9,0.75363]
[1724366941090,24.7832,2624.1,2623.9,0.75363]
[1724366941491,28.5944,2624.1,2623.9,0.75363]
[1724366942197,24.7832,2624.1,2623.9,0.75363]
[1724366944293,25.16421,2624.1,2623.9,0.75363]
[1724366944495,23.8232,2624.1,2624.0,0.38102]
[1724366944801,23.8232,2624.1,2623.9,1.71363]
[1724366945688,23.8232,2624.1,2623.9,1.3326]
[1724366945887,23.8232,2624.1,2623.9,1.71362]
[1724366946091,23.8232,2624.1,2624.0,0.38102]
[1724366946292,23.1,2624.1,2624.0,1.34102]
[1724366946497,23.1,2624.1,2624.0,5.88442]
[1724366949903,23.1,2624.1,2624.0,10.04478]
[1724366950500,0.00571135,2624.3,2624.2,0.38099]
[1724366950700,0.00571135,2624.3,2624.2,1.34099]
[1724366950895,0.00571135,2624.3,2624.2,5.15139]
[1724366951204,23.10571135,2624.3,2624.2,5.15139]
[1724366952695,23.10571135,2624.3,2624.2,0.38099]
[1724366956205,23.10571135,2624.3,2624.2,1.34099]
[1724366960509,24.06571135,2624.3,2624.0,3.58882]
[1724366960709,24.06571135,2624.3,2624.1,0.38101]
[1724366960710,0.3704,2624.2,2624.1,0.38101]
[1724366971320,23.10571135,2624.3,2624.2,0.38099]
[1724366971511,23.10571135,2624.3,2624.2,1.34099]
[1724366983121,23.10571135,2624.3,2624.2,4.54879]
[1724366984425,23.10571135,2624.3,2624.2,3.58879]
[1724366984724,23.10571135,2624.3,2624.2,3.2078]
[1724366985827,23.10571135,2624.3,2624.2,3.58879]
[1724366986924,28.25709135,2624.3,2624.2,3.2078]
[1724366988212,28.25710135,2624.3,2624.0,0.99827551]
[1724366988417,24.44670135,2624.3,2624.0,0.99827551]
[1724366988833,24.44670135,2624.3,2623.9,2.71190551]
[1724366989329,24.06571135,2624.3,2623.9,2.71190551]
[1724366989522,24.06571135,2624.3,2624.0,0.99827551]
[1724366990123,24.06571135,2624.3,2624.0,1.37929551]
[1724366990530,24.06571135,2624.3,2624.0,0.99827551]
[1724366990721,24.06571135,2624.3,2624.0,1.37929551]
[1724366991218,24.44669135,2624.3,2623.9,1.75190551]
[1724366991419,24.44669135,2624.3,2623.9,2.71190551]
[1724366992026,0.96,2624.1,2623.8,1.95827551]
[1724366992230,0.7378,2624.0,2623.8,1.95827551]
[1724366992528,1.1138,2624.0,2623.8,2.33932551]
[1724366997831,1.1138,2624.0,2623.9,0.38104]
[1724366998829,1.1138,2624.0,2623.8,2.33931551]
[1724366999133,4.7712,2623.9,2623.6,0.38107]
[1724366999334,1.1138,2624.0,2623.7,0.38106]
[1724366999335,2.45483,2624.0,2623.7,0.38106]
[1724366999725,6.26603,2624.0,2623.7,0.38106]
[1724367000423,6.26603,2624.0,2623.7,0.38107]
[1724367000625,2.0738,2624.0,2623.7,0.96]
[1724367000828,1.1138,2624.0,2623.9,1.34104]
[1724367001228,1.1138,2624.0,2623.9,1.68934]
[1724367001621,1.1138,2624.0,2623.9,0.72934]
[1724367002130,1.1138,2624.0,2623.9,0.38104]
[1724367010430,1.49483,2624.0,2623.8,4.20607551]
[1724367010633,1.1138,2624.0,2623.8,3.2078]
[1724367010827,0.38104,2623.9,2623.8,3.2078]
[1724367012031,0.38104,2623.9,2623.4,1.99390537]
[1724367012032,0.95264,2623.8,2623.5,0.99827551]
[1724367012233,0.38109,2623.6,2623.4,1.37938551]
[1724367012434,0.38109,2623.6,2623.4,0.38111]
[1724367012628,0.3579,2623.5,2623.4,0.38111]
[1724367013649,0.3579,2623.5,2623.4,1.34111]
[1724367014444,0.7365,2623.6,2623.5,0.38109]
[1724367014844,0.7365,2623.6,2623.5,0.74559]
[1724367015346,0.3795,2623.6,2623.5,0.74559]
[1724367015541,1.3288,2624.0,2623.5,1.3245]
[1724367015735,0.38099,2624.2,2623.9,1.34103]
[1724367015935,1.0674,2624.2,2624.0,0.3571]
[1724367016245,1.0674,2624.2,2624.0,0.73812]
[1724367016246,1.4484,2624.2,2624.0,0.73812]
[1724367016440,2.4084,2624.2,2624.0,0.73812]
[1724367016837,1.3111,2624.2,2624.1,0.38101]
[1724367017041,0.3511,2624.2,2624.1,0.38101]
[1724367017640,27.27351135,2624.3,2624.2,0.38099]
[1724367017846,26.31351135,2624.3,2624.2,0.38099]
[1724367019136,23.10571135,2624.3,2624.2,0.38099]
[1724367019456,23.10571135,2624.3,2624.2,3.58879]
[1724367022246,23.10571135,2624.3,2624.2,0.38099]
[1724367026847,24.06571135,2624.3,2624.2,0.38099]
[1724367027056,0.381,2624.2,2624.0,0.3571]
[1724367027255,0.96,2624.1,2624.0,0.3571]
[1724367027551,1.341,2624.2,2624.0,0.3571]
[1724367028052,0.96,2624.2,2624.0,0.73812]
[1724367028651,0.3582,2624.1,2624.0,0.73812]
[1724367029946,0.3582,2624.1,2624.0,0.3571]
[1724367030162,0.7107,2624.1,2623.9,0.38103]
[1724367030347,1.0648,2624.1,2623.9,0.38103]
[1724367032556,1.0648,2624.1,2624.0,0.38102]
[1724367034354,1.0648,2624.1,2623.9,0.38103]
[1724367035061,2.0248,2624.1,2624.0,0.38102]
[1724367039660,2.0248,2624.1,2623.8,0.99827551]
[1724367039970,0.96,2623.9,2623.8,0.38105]
[1724367040570,0.96,2623.9,2623.7,0.38106]
[1724367041365,0.96,2623.9,2623.8,0.38105]
[1724367042164,1.0648,2624.1,2623.8,0.96]
[1724367042360,1.0648,2624.1,2624.0,0.38102]
[1724367042668,2.0248,2624.1,2624.0,0.38102]
[1724367043370,1.0648,2624.1,2624.0,0.38102]
[1724367046571,1.0648,2624.1,2623.8,0.3542]
[1724367046572,1.0648,2624.1,2623.9,0.38103]
[1724367047367,0.96,2624.0,2623.9,0.38103]
[1724367051662,1.44581,2624.1,2623.9,0.38103]
[1724367053965,1.44581,2624.1,2623.8,0.3542]
[1724367053966,1.0648,2624.1,2623.8,0.3542]
[1724367055275,1.44581,2624.1,2623.9,0.38103]
[1724367056486,1.0648,2624.1,2624.0,0.38102]
[1724367056779,1.44581,2624.1,2623.9,0.38103]
[1724367057567,1.34102,2624.0,2623.8,0.73524]
[1724367057973,1.34102,2624.0,2623.8,0.38104]
[1724367059475,0.96,2624.0,2623.7,1.34106]
[1724367059787,0.38106,2623.8,2623.6,1.74194551]
[1724367060081,0.7269,2623.7,2623.6,1.74194551]
[1724367060283,1.0792,2623.7,2623.6,1.36087551]
[1724367060487,1.0792,2623.7,2623.6,1.74195551]
[1724367061081,23.10571135,2624.3,2623.6,2.32087551]
[1724367061383,0.38102,2624.1,2623.8,0.96]
[1724367061689,0.38102,2624.1,2623.8,1.34104]
[1724367061888,0.38102,2624.1,2623.9,0.3779]
[1724367062077,0.38102,2624.1,2623.9,0.75894]
[1724367062676,1.3367,2624.2,2623.9,0.75894]
[1724367062877,1.7177,2624.2,2624.0,0.38102]
[1724367063479,0.38101,2624.1,2623.9,1.12523]
[1724367065286,1.7177,2624.2,2624.0,0.38102]
[1724367065475,1.7177,2624.2,2624.1,0.38101]
[1724367065476,0.96,2624.2,2624.1,0.38101]
[1724367066092,1.34099,2624.2,2624.1,0.38101]
[1724367066281,0.96,2624.2,2624.1,0.38101]
[1724367067085,1.34099,2624.2,2624.1,0.38101]
[1724367067385,23.86360135,2624.3,2624.1,0.38101]
[1724367067685,24.82360135,2624.3,2624.1,0.38101]
[1724367067874,24.82360135,2624.3,2624.2,0.3833]
[1724367069480,24.44261135,2624.3,2624.2,0.76429]
[1724367069687,24.82359135,2624.3,2624.2,0.3833]
[1724367071585,24.44261135,2624.3,2624.2,0.3833]
[1724367071791,24.82359135,2624.3,2624.2,0.3833]
[1724367072279,24.06571135,2624.3,2624.2,0.3833]
[1724367072476,24.44669135,2624.3,2624.2,0.3833]
[1724367073495,24.06571135,2624.3,2624.2,0.76429]
[1724367073688,23.10571135,2624.3,2624.2,0.76429]
[1724367073988,23.10571135,2624.3,2624.2,6.53296551]
[1724367076391,23.10571135,2624.3,2624.2,5.53469]
[1724367076599,23.10571135,2624.3,2624.2,6.53296551]
[1724367077092,23.10571135,2624.3,2624.2,5.53469]
[1724367078081,23.10571135,2624.3,2624.2,6.53296551]
[1724367078384,23.10571135,2624.3,2624.2,0.38099]
[1724367078794,23.83511135,2624.3,2624.2,0.38099]
[1724367080493,23.83511135,2624.3,2624.1,3.5888]
[1724367081392,24.21609135,2624.3,2624.0,2.70328551]
[1724367081593,0.3677,2624.2,2624.0,1.70501]
[1724367082786,0.3677,2624.2,2624.1,0.38101]
[1724367083295,0.3677,2624.2,2624.0,1.70501]
[1724367083995,1.3277,2624.2,2624.0,0.38101]
[1724367086091,1.3277,2624.2,2624.1,0.38101]
[1724367087998,1.3277,2624.2,2624.0,0.38102]
[1724367088498,1.7087,2624.2,2623.9,0.38103]
[1724367089001,1.3277,2624.2,2624.0,0.38102]
[1724367090101,1.3277,2624.2,2623.5,1.31835452]
[1724367090102,0.96,2624.1,2623.4,4.16055]
[1724367090302,0.96,2623.9,2623.7,0.38106]
[1724367090605,1.0908,2623.8,2623.7,0.38107]
[1724367091103,1.0908,2623.8,2623.7,0.75087]
[1724367091803,0.7146,2623.8,2623.7,0.75087]
[1724367092009,0.3689,2624.1,2624.0,0.38102]
[1724367092201,0.7526,2624.1,2624.0,0.38102]
[1724367093209,0.3837,2624.1,2624.0,0.38102]
[1724367093710,0.3837,2624.1,2624.0,0.74622]
[1724367094515,0.3701,2624.2,2624.1,0.38101]
[1724367095106,0.3701,2624.2,2624.1,3.58881]
[1724367095807,23.10571135,2624.3,2624.2,0.38099]
[1724367096199,23.46261135,2624.3,2624.2,0.38099]
[1724367097209,24.42261135,2624.3,2624.2,0.38099]
[1724367098506,24.42261135,2624.3,2624.0,0.3652]
[1724367098507,24.80359135,2624.3,2624.0,0.3652]
[1724367098812,24.42261135,2624.3,2624.1,0.381]
[1724367099506,24.42261135,2624.3,2624.1,0.38101]
[1724367100911,23.46261135,2624.3,2624.2,0.38099]
[1724367101508,23.10571135,2624.3,2624.2,1.34099]
[1724367102410,23.10571135,2624.3,2624.2,0.38099]
[1724367105202,23.10571135,2624.3,2624.2,0.73219]
[1724367105712,23.10571135,2624.3,2624.2,2.06649]
[1724367106102,23.10571135,2624.3,2624.2,6.87599158]
[1724367106305,23.10571135,2624.3,2624.2,9.73442609]
[1724367106511,23.10571135,2624.3,2624.2,10.2340021]
[1724367107711,0.00571135,2624.3,2624.2,10.2340021]
[1724367107908,0.00571135,2624.3,2624.2,15.2340021]
[1724367108110,0.00367576,2625.0,2624.9,0.38089]
[1724367108324,0.00367576,2625.0,2624.9,1.34089]
[1724367112205,23.10367576,2625.0,2624.9,1.34089]
[1724367117315,23.10367576,2625.0,2624.9,6.10273]
[1724367118414,23.10367576,2625.0,2624.9,5.15049]
[1724367119809,23.10367576,2625.0,2624.9,6.10273]
[1724367120717,0.00367576,2625.0,2624.9,6.10273]
[1724367123821,0.00367576,2625.0,2624.9,5.15049]
[1724367125813,0.00367576,2625.0,2624.9,6.10273]
[1724367128022,0.00367576,2625.0,2624.9,10.14273]
[1724367128225,0.00367576,2625.0,2624.9,11.10273]
[1724367131014,0.00367576,2625.0,2624.9,11.27258457]
[1724367134734,0.00367576,2625.0,2624.9,12.22482457]
[1724367142229,5.76e-06,2625.0,2624.9,12.22482457]
[1724367142546,0.00571135,2625.2,2625.1,1.33303]
[1724367142733,0.00571135,2625.2,2625.1,5.50083]
[1724367143037,0.00571135,2625.2,2625.1,9.31043]
[1724367143427,0.01000191,2625.2,2625.1,10.00716766]
[1724367143734,0.01000191,2625.2,2625.1,11.95815141]
[1724367144931,0.01000191,2625.2,2625.1,10.95933766]
[1724367145239,0.01000191,2625.2,2625.1,11.61045141]
[1724367145438,0.01000191,2625.2,2625.1,9.31386766]
[1724367145734,0.01000191,2625.2,2625.1,5.50426766]
[1724367146328,0.01000191,2625.2,2625.1,0.00343766]
[1724367146535,3.81960191,2625.2,2625.1,0.00343766]
[1724367147051,3.81960191,2625.2,2625.1,1.34429766]
[1724367147052,0.01000191,2625.2,2625.1,1.34429766]
[1724367148436,0.01000191,2625.2,2625.1,0.96343766]
[1724367153835,0.01000191,2625.2,2625.1,1.34429766]
[1724367162550,0.01000191,2625.2,2625.1,2.34311141]
[1724367164850,0.01000191,2625.2,2625.1,1.34429766]
[1724367165048,0.01000191,2625.2,2625.1,2.34311141]
[1724367165252,0.01000191,2625.2,2625.1,1.34429766]
[1724367165939,0.01000191,2625.2,2625.1,2.34311141]
[1724367166450,0.01000191,2625.2,2625.1,1.34429766]
[1724367169048,0.01000191,2625.2,2625.1,2.34311141]
[1724367169452,0.01000191,2625.2,2625.1,1.34429766]
[1724367171547,3.81960191,2625.2,2625.1,0.00343766]
[1724367172053,4.16520191,2625.2,2625.1,0.00343766]
[1724367172550,4.16520191,2625.2,2625.1,0.38429766]
[1724367174556,4.16520191,2625.2,2625.1,0.75969766]
[1724367175651,4.16520191,2625.2,2625.1,1.75851141]
[1724367175853,4.16520191,2625.2,2625.1,0.75969766]
[1724367176552,0.01000191,2625.2,2625.1,2.71851141]
[1724367177862,0.01000191,2625.2,2625.1,0.75969766]
[1724367178052,0.01000191,2625.2,2625.1,2.71851141]
[1724367179551,0.01000191,2625.2,2625.1,4.62375112]
[1724367179753,0.01000191,2625.2,2625.1,4.62375563]
[1724367180152,0.01000191,2625.2,2625.1,2.71851141]
[1724367180351,0.01000191,2625.2,2625.1,4.62374577]
[1724367180663,0.01000191,2625.2,2625.1,1.71969766]
[1724367184849,0.01000191,2625.2,2625.1,2.71851141]
[1724367185049,0.01000191,2625.2,2625.1,5.123175]
[1724367188058,0.01000191,2625.2,2625.1,5.05342163]
[1724367188264,1.1461,2625.8,2625.6,0.38078]
[1724367188458,23.1,2625.7,2625.6,0.96]
[1724367188762,23.1,2625.7,2625.6,1.34079]
[1724367189064,1.1461,2625.8,2625.7,0.38078]
[1724367189262,0.00449561,2625.8,2625.7,4.89848]
[1724367189460,0.00449561,2625.8,2625.7,5.24418]
[1724367189765,0.00449561,2625.8,2625.7,6.24108959]
[1724367189961,0.00449561,2625.8,2625.7,5.24418]
[1724367190767,0.00449561,2625.8,2625.7,4.28418]
[1724367191067,0.00449561,2625.8,2625.7,2.03638]
[1724367196272,0.00449561,2625.8,2625.7,6.19613]
[1724367197166,0.00449561,2625.8,2625.7,5.24418]
[1724367198472,0.00449561,2625.8,2625.7,4.54858]
[1724367199073,3.81329561,2625.8,2625.7,3.2078]
[1724367199279,3.81329561,2625.8,2625.4,1.37771959]
[1724367199280,4.19405561,2625.8,2625.5,0.96]
[1724367199470,1.1142,2625.7,2625.5,0.96]
[1724367199774,23.1,2625.6,2625.5,4.54861]
[1724367199966,23.1,2625.6,2625.5,1.34081]
[1724367200162,23.1,2625.6,2625.4,0.38081]
[1724367200163,26.9088,2625.6,2625.4,0.38081]
[1724367200363,23.1,2625.6,2625.5,0.96]
[1724367200774,26.9088,2625.6,2625.5,0.96]
[1724367202869,26.9088,2625.6,2625.5,1.34081]
[1724367204267,26.9088,2625.6,2625.4,0.38081]
[1724367204486,23.1,2625.6,2625.5,0.96]
[1724367205773,23.1,2625.6,2625.5,1.34081]
[1724367207567,23.1,2625.6,2625.5,0.96]
[1724367207880,23.1,2625.6,2625.5,1.34081]
[1724367210268,23.1,2625.6,2625.5,0.96]
[1724367212478,23.1,2625.6,2625.4,0.38081]
[1724367212669,23.1,2625.6,2625.3,1.34083]
[1724367212670,28.2496,2625.6,2625.3,1.34083]
[1724367212869,24.4408,2625.6,2625.3,0.96]
[1724367213072,24.4408,2625.6,2625.3,1.34083]
[1724367213276,24.4408,2625.6,2625.3,0.38083]
[1724367214568,24.06,2625.6,2625.3,0.38083]
[1724367214771,24.06,2625.6,2625.4,0.38082]
[1724367214976,24.06,2625.6,2625.3,0.38083]
[1724367215974,24.06,2625.6,2625.4,0.38082]
[1724367216679,24.06,2625.6,2625.3,0.38083]
[1724367216886,24.44079,2625.6,2625.3,0.38083]
[1724367217785,24.06,2625.6,2625.4,0.38082]
[1724367221186,24.44079,2625.6,2625.3,1.34082]
[1724367222073,24.44079,2625.6,2625.1,3.21123766]
[1724367222074,0.96,2625.5,2625.1,3.21123766]
[1724367222282,0.38082,2625.4,2625.1,4.55208766]
[1724367222584,2.07824,2625.3,2625.1,0.00343766]
[1724367222773,24.7974,2625.3,2625.1,0.00343766]
[1724367222981,28.607,2625.3,2625.1,0.38429766]
[1724367224281,28.607,2625.3,2625.1,0.76639766]
[1724367226496,23.8374,2625.3,2625.2,1.34085]
[1724367231089,23.8374,2625.3,2625.2,0.38085]
[1724367236291,24.7974,2625.3,2625.2,0.38085]
[1724367237997,28.6062,2625.3,2625.1,0.00343766]
[1724367238294,1.34085,2625.2,2625.1,0.00343766]
[1724367238801,5.15045,2625.2,2625.1,0.00343766]
[1724367238990,28.25045,2625.2,2625.1,0.00343766]
[1724367240398,24.44085,2625.2,2625.1,0.00343766]
[1724367241097,24.06,2625.2,2625.1,0.00343766]
[1724367241402,23.1,2625.2,2625.1,0.38429766]
[1724367242895,23.1,2625.2,2625.1,0.00343766]
[1724367243293,23.1,2625.2,2625.1,0.75079766]
[1724367243501,23.1,2625.2,2625.1,1.71079766]
[1724367244807,23.1,2625.2,2625.1,5.52039766]
[1724367246008,23.1,2625.2,2625.1,6.47256766]
[1724367246203,23.1,2625.2,2625.1,10.67727725]
[1724367246401,23.1,2625.2,2625.1,9.72510725]
[1724367251702,23.1,2625.2,2625.1,11.63041018]
[1724367252012,23.1,2625.2,2625.1,12.12886498]
[1724367257306,23.1,2625.2,2625.1,8.92106498]
[1724367258505,23.1,2625.2,2625.1,7.01576205]
[1724367258706,23.1,2625.2,2625.1,8.9210754]
[1724367259618,23.1,2625.2,2625.1,5.1114754]
[1724367260312,23.1,2625.2,2625.1,5.58780063]
[1724367260708,23.1,2625.2,2625.1,5.58779997]
[1724367261010,23.1,2625.2,2625.1,5.1114754]
[1724367261408,23.1,2625.2,2625.1,5.58780262]
[1724367263312,23.1,2625.2,2625.1,5.59084452]
[1724367263510,23.1,2625.2,2625.1,5.11450648]
[1724367264715,23.1,2625.2,2625.1,5.59083322]
[1724367265108,23.1,2625.2,2625.1,5.11450648]
[1724367265303,23.1,2625.2,2625.1,5.59083741]
[1724367265709,23.1,2625.2,2625.1,5.59081343]
[1724367265910,23.1,2625.2,2625.1,4.09243112]
[1724367267125,23.1,2625.2,2625.1,5.59083295]
[1724367268619,0.3809,2625.6,2625.5,0.38081]
[1724367268818,0.3809,2625.6,2625.5,6.45391253]
[1724367269019,23.4809,2625.6,2625.5,8.42798733]
[1724367269427,23.4809,2625.6,2625.5,7.95174633]
[1724367269623,0.7369,2625.7,2625.6,0.38079]
[1724367269926,0.7369,2625.7,2625.6,3.78305997]
[1724367270126,23.8369,2625.7,2625.6,3.24609253]
[1724367270524,23.8369,2625.7,2625.6,2.33854588]
[1724367271226,23.8369,2625.7,2625.6,4.24351888]
[1724367271428,23.8369,2625.7,2625.6,0.99775588]
[1724367271628,23.8369,2625.7,2625.6,1.95775588]
[1724367272318,23.8369,2625.7,2625.6,0.96]
[1724367272722,23.8369,2625.7,2625.5,3.5886]
[1724367272723,23.8369,2625.7,2625.5,4.1678]
[1724367272919,0.3826,2625.6,2625.5,4.5486]
[1724367273116,0.3826,2625.6,2625.5,5.54635588]
[1724367273320,0.3826,2625.6,2625.5,4.5486]
[1724367274525,0.3826,2625.6,2625.5,1.3408]
[1724367274923,0.3826,2625.6,2625.5,4.5486]
[1724367275231,0.3826,2625.6,2625.5,5.54635588]
[1724367277425,23.8369,2625.7,2625.6,0.38079]
[1724367277631,0.7369,2625.7,2625.6,3.24573437]
[1724367277827,0.7369,2625.7,2625.6,7.05438846]
[1724367278139,0.7369,2625.7,2625.6,8.5513559]
[1724367278436,23.10449561,2625.8,2625.7,1.33273]
[1724367278636,23.10449561,2625.8,2625.7,4.23388237]
[1724367278935,23.10449561,2625.8,2625.7,4.61418237]
[1724367279129,23.10449561,2625.8,2625.7,3.61782846]
[1724367279437,0.00449561,2625.8,2625.7,5.1147959]
[1724367279824,23.10449561,2625.8,2625.7,5.1147959]
[1724367280229,23.10449561,2625.8,2625.7,2.66587846]
[1724367280430,23.10449561,2625.8,2625.7,1.75719114]
[1724367280836,23.46199561,2625.8,2625.7,1.75719114]
[1724367281226,23.83019561,2625.8,2625.7,1.75719114]
[1724367282157,23.83019561,2625.8,2625.7,0.76108]
[1724367283235,23.46199561,2625.8,2625.7,0.76108]
[1724367284838,0.00449561,2625.8,2625.7,11.47378]
[1724367285030,0.00449561,2625.8,2625.7,12.83409114]
[1724367285231,0.00449561,2625.8,2625.7,9.73869762]
[1724367285542,0.00449561,2625.8,2625.7,12.83409114]
[1724367285740,0.00449561,2625.8,2625.7,7.83409114]
[1724367286339,0.00449561,2625.8,2625.7,6.88214114]
[1724367286743,0.00449561,2625.8,2625.7,10.08994114]
[1724367287038,0.00449561,2625.8,2625.7,9.09383]
[1724367288232,0.00449561,2625.8,2625.7,8.14188]
[1724367288639,0.00449561,2625.8,2625.7,7.77768]
[1724367288847,0.00449561,2625.8,2625.7,3.96888]
[1724367289148,0.35069561,2625.8,2625.7,3.96888]
[1724367290848,0.35069561,2625.8,2625.7,4.1678]
[1724367291042,0.35069561,2625.8,2625.7,0.96]
[1724367291544,0.35069561,2625.8,2625.7,1.34078]
[1724367293346,0.35069561,2625.8,2625.6,3.2078]
[1724367293550,0.3595,2625.7,2625.6,3.2078]
[1724367293847,0.3595,2625.7,2625.6,4.54859]
[1724367298447,0.00449561,2625.8,2625.7,0.38078]
[1724367298649,0.00449561,2625.8,2625.7,1.33273]
[1724367298838,0.00449561,2625.8,2625.7,1.69603]
[1724367299149,0.37989561,2625.8,2625.7,1.69603]
[1724367299653,0.37989561,2625.8,2625.7,0.74408]
[1724367299854,0.76149561,2625.8,2625.7,0.74408]
[1724367301641,0.76149561,2625.8,2625.6,0.38078]
[1724367301848,0.76149561,2625.8,2625.7,0.96]
[1724367302055,4.57029561,2625.8,2625.7,0.96]
[1724367302256,4.57029561,2625.8,2625.7,1.34078]
[1724367303558,0.76149561,2625.8,2625.7,0.96]
[1724367303950,0.76149561,2625.8,2625.7,1.34078]
[1724367304960,0.76149561,2625.8,2625.7,4.54858]
[1724367306360,0.76149561,2625.8,2625.7,1.34078]
[1724367316560,4.57029561,2625.8,2625.7,0.38078]
[1724367317167,4.57029561,2625.8,2625.5,0.99611114]
[1724367317466,0.38081,2625.5,2625.2,2.33695114]
[1724367317658,1.0929,2625.4,2625.2,2.33695114]
[1724367318268,1.0929,2625.4,2625.2,1.95611114]
[1724367318463,1.0929,2625.4,2625.2,0.96]
[1724367319363,1.47372,2625.4,2625.2,0.96]
[1724367319763,1.47372,2625.4,2625.1,1.34603766]
[1724367320459,1.34084,2625.3,2625.1,0.00343766]
[1724367320672,4.9017,2625.4,2625.1,0.96343766]
[1724367320673,2.43373,2625.4,2625.1,0.96343766]
[1724367321060,1.0929,2625.4,2625.1,0.96343766]
[1724367321772,1.47372,2625.4,2625.1,0.96343766]
[1724367323075,6.24252,2625.4,2625.1,0.00343766]
[1724367325577,6.24252,2625.4,2625.1,0.38429766]
[1724367326971,5.28252,2625.4,2625.1,1.34429766]
[1724367327170,1.47372,2625.4,2625.1,1.70199766]
[1724367328280,1.0929,2625.4,2625.2,0.38085]
[1724367328876,4.9017,2625.4,2625.2,0.38085]
[1724367329674,5.28252,2625.4,2625.2,0.38085]
[1724367341377,4.9017,2625.4,2625.3,0.38083]
[1724367341574,1.0929,2625.4,2625.3,0.38083]
[1724367341774,0.3535,2625.4,2625.3,0.38083]
[1724367342873,0.3509,2625.6,2625.5,0.3808]
[1724367343484,4.1597,2625.6,2625.5,0.3808]
[1724367346991,4.54049,2625.6,2625.5,0.3808]
[1724367347302,0.7513,2625.7,2625.6,0.38079]
[1724367347596,0.38526561,2625.8,2625.6,1.34078]
[1724367347779,0.00449561,2625.8,2625.7,1.34078]
[1724367348877,0.00449561,2625.8,2625.7,1.70348]
[1724367349078,0.00449561,2625.8,2625.7,5.51228]
[1724367354282,0.00449561,2625.8,2625.7,5.86088]
[1724367356388,0.00449561,2625.8,2625.7,2.05208]
[1724367360502,0.00449561,2625.8,2625.7,1.68938]
[1724367360896,0.00449561,2625.8,2625.7,0.3486]
[1724367361597,0.75779561,2625.8,2625.7,0.3486]
[1724367361803,1.12739561,2625.8,2625.7,0.3486]
[1724367363104,1.12739561,2625.8,2625.7,0.72938]
[1724367364503,6.27695561,2625.8,2625.6,3.2078]
[1724367364700,2.46815561,2625.8,2625.6,3.2078]
[1724367365999,2.46815561,2625.8,2625.7,0.96]
[1724367366000,1.12739561,2625.8,2625.7,0.96]
[1724367366201,1.12739561,2625.8,2625.7,1.70888]
[1724367366597,1.12739561,2625.8,2625.6,4.1678]
[1724367366797,1.12739561,2625.8,2625.6,4.54858]
[1724367367103,1.50815561,2625.8,2625.6,4.54858]
[1724367367301,1.12739561,2625.8,2625.6,4.54858]
[1724367367500,2.08739561,2625.8,2625.6,4.54858]
[1724367368304,0.75369561,2625.8,2625.6,4.1678]
[1724367368506,0.75369561,2625.8,2625.7,0.38078]
[1724367369903,0.75369561,2625.8,2625.7,0.74228]
[1724367370205,0.75369561,2625.8,2625.7,1.70228]
[1724367386404,1.13445561,2625.8,2625.7,0.74228]
[1724367386912,1.13445561,2625.8,2625.7,0.38078]
[1724367388227,1.13445561,2625.8,2625.6,0.38078]
[1724367388419,0.38078,2625.7,2625.5,2.0844]
[1724367388723,0.38079,2625.6,2625.4,1.34081]
[1724367388923,0.3532,2625.5,2625.4,1.34081]
[1724367389222,0.7206,2625.5,2625.4,1.34081]
[1724367390418,1.1014,2625.5,2625.4,0.96]
[1724367390618,5.8702,2625.5,2625.3,0.99611114]
[1724367390816,0.3492,2625.4,2625.2,3.591]
[1724367391722,0.3492,2625.4,2625.2,3.97184]
[1724367392324,0.3492,2625.4,2625.3,0.38083]
[1724367392623,0.3492,2625.4,2625.3,1.34083]
[1724367394321,0.00449561,2625.8,2625.3,0.96]
[1724367394511,0.00449561,2625.8,2625.6,0.96]
[1724367394722,0.00449561,2625.8,2625.7,0.3724]
[1724367394926,0.38525561,2625.8,2625.7,0.3724]
[1724367395120,4.19405561,2625.8,2625.7,0.3724]
[1724367395425,0.38078,2625.7,2625.5,0.3808]
[1724367395624,1.34526561,2625.8,2625.5,0.3808]
[1724367395829,0.3817,2625.6,2625.5,0.3808]
[1724367400728,0.76249,2625.6,2625.4,0.73291]
[1724367401328,0.38079,2625.7,2625.4,0.3521]
[1724367401520,0.00449561,2625.8,2625.6,1.34079]
[1724367401521,0.38526561,2625.8,2625.6,1.34079]
[1724367401930,0.38526561,2625.8,2625.7,0.359]
[1724367408443,0.00449561,2625.8,2625.7,0.359]
[1724367408644,0.00449561,2625.8,2625.7,0.73978]
[1724367408837,0.00449561,2625.8,2625.7,0.359]
[1724367409530,0.38525561,2625.8,2625.7,0.359]
[1724367410937,0.75565561,2625.8,2625.7,0.359]
[1724367411237,0.38079,2625.6,2625.5,0.99611114]
[1724367411539,1.34079,2625.6,2625.4,0.38082]
[1724367411747,0.7318,2625.5,2625.4,0.38082]
[1724367412135,1.11262,2625.5,2625.3,0.99611114]
[1724367412446,1.11262,2625.5,2625.2,0.3549]
[1724367412447,0.3704,2625.4,2625.2,2.69185114]
[1724367412747,0.3704,2625.4,2625.3,0.38083]
[1724367413137,0.3704,2625.4,2625.2,2.69185114]
[1724367413650,1.3304,2625.4,2625.3,0.99611114]
[1724367413942,0.38084,2625.3,2625.1,0.00343766]
[1724367414146,23.1,2625.2,2625.1,0.00343766]
[1724367414843,23.1,2625.2,2625.1,0.38429766]
[1724367417155,23.1,2625.2,2625.1,0.00343766]
[1724367418366,23.1,2625.2,2625.1,0.38429766]
[1724367419764,23.1,2625.2,2625.1,0.00343766]
[1724367421456,23.1,2625.2,2625.1,0.38429766]
[1724367421651,23.1,2625.2,2625.1,0.00343766]
[1724367422067,23.1,2625.2,2625.1,0.38429766]
[1724367422457,23.1,2625.2,2625.1,0.00343766]